bitfinex/quotes_BTCUSD_20230111
["timestamp","ask_amount","ask_price","bid_price","bid_amount"]
[1673444556637,1.95764229,17395.0,17394.0,0.41713677]
[1673444557473,1.95764229,17395.0,17394.0,0.67486369]
[1673444557728,1.96264229,17395.0,17394.0,0.69486369]
[1673444557976,1.95764229,17395.0,17394.0,0.67486369]
[1673444558506,1.96964229,17395.0,17394.0,0.70086369]
[1673444558510,1.95764229,17395.0,17394.0,0.67486369]
[1673444558773,1.96264229,17395.0,17394.0,0.69486369]
[1673444559040,1.95764229,17395.0,17394.0,0.67486369]
[1673444559294,1.96964229,17395.0,17394.0,0.70086369]
[1673444559556,1.95764229,17395.0,17394.0,0.67486369]
[1673444559823,1.96264229,17395.0,17394.0,0.69486369]
[1673444560923,1.95764229,17395.0,17394.0,0.84660977]
[1673444561443,0.005,17395.0,17394.0,1.93123185]
[1673444561700,3.4323217,17397.0,17394.0,1.56766686]
[1673444561965,0.012,17395.0,17394.0,2.16857586]
[1673444562752,0.00015,17396.0,17394.0,2.28802543]
[1673444563008,0.00015,17396.0,17395.0,1.73386578]
[1673444563270,0.00015,17396.0,17395.0,2.53954965]
[1673444563829,1.34715,17397.0,17396.0,0.3]
[1673444564081,1.33515,17397.0,17396.0,2.30888114]
[1673444564341,1.33515,17397.0,17396.0,1.94917014]
[1673444564613,1.33515,17397.0,17396.0,2.30887683]
[1673444565098,2.04556749,17399.0,17396.0,2.21473619]
[1673444565105,0.015,17397.0,17396.0,2.81558019]
[1673444565372,0.015,17397.0,17396.0,2.549799]
[1673444566687,0.015,17397.0,17396.0,3.09051147]
[1673444568247,0.015,17397.0,17396.0,2.79051147]
[1673444568509,1.58782789,17397.0,17396.0,1.40979971]
[1673444568789,2.85577507,17397.0,17396.0,0.276]
[1673444569043,2.19251541,17397.0,17396.0,0.44802806]
[1673444569304,2.91315075,17397.0,17396.0,0.44802806]
[1673444569828,2.74825075,17397.0,17396.0,0.44802806]
[1673444570118,2.73325075,17397.0,17396.0,0.25]
[1673444570401,2.68087507,17397.0,17396.0,0.27]
[1673444570666,1.96023973,17397.0,17396.0,0.27]
[1673444570939,2.68087507,17397.0,17396.0,0.27]
[1673444573111,2.68087507,17397.0,17396.0,0.44202806]
[1673444573375,1.96023973,17397.0,17396.0,0.44202806]
[1673444573645,1.96023973,17397.0,17396.0,0.7000658]
[1673444573903,1.96023973,17397.0,17396.0,1.26871897]
[1673444574171,1.96029973,17397.0,17396.0,1.2687528]
[1673444574416,1.96029973,17397.0,17396.0,2.11960519]
[1673444574675,1.96029973,17397.0,17396.0,2.29158792]
[1673444574954,1.34021,17397.0,17396.0,3.02163201]
[1673444575209,1.34021,17397.0,17396.0,3.50363827]
[1673444575499,1.34021,17397.0,17396.0,3.86334927]
[1673444575983,1.97997611,17397.0,17396.0,1.91065661]
[1673444576241,1.97997611,17397.0,17396.0,1.55094561]
[1673444576807,1.97997611,17397.0,17396.0,1.29289093]
[1673444578341,1.97991611,17397.0,17396.0,1.29289093]
[1673444578598,2.57386378,17397.0,17396.0,1.12085239]
[1673444578855,3.86931012,17397.0,17396.0,1.12085239]
[1673444580200,0.89238903,17396.0,17392.0,0.39645839]
[1673444580469,0.23767789,17395.0,17394.0,0.25810074]
[1673444580710,1.02657124,17396.0,17394.0,0.25810074]
[1673444580955,1.33515,17395.0,17394.0,0.25810074]
[1673444581218,2.06172124,17395.0,17394.0,0.50810074]
[1673444581470,1.33521,17395.0,17394.0,0.50810074]
[1673444582052,2.06178124,17395.0,17394.0,0.51610074]
[1673444582290,2.06178124,17395.0,17394.0,0.50810074]
[1673444582541,1.35121,17395.0,17394.0,0.51610074]
[1673444582787,2.73844,17395.0,17394.0,0.51610074]
[1673444583287,2.01186876,17395.0,17394.0,0.51610074]
[1673444584604,1.95749876,17395.0,17394.0,0.51610074]
[1673444584875,1.95749876,17395.0,17394.0,0.258]
[1673444585133,1.95749876,17395.0,17394.0,0.558]
[1673444585385,1.95749876,17395.0,17394.0,1.13291]
[1673444585662,1.95749876,17395.0,17394.0,1.43291]
[1673444585941,0.01606,17395.0,17394.0,2.00782]
[1673444586466,0.016,17395.0,17394.0,2.00782]
[1673444586962,0.016,17395.0,17394.0,2.51136616]
[1673444587789,0.016,17395.0,17394.0,2.62066616]
[1673444588044,0.016,17395.0,17394.0,2.98037716]
[1673444588313,0.016,17395.0,17394.0,3.49652797]
[1673444589656,0.016,17395.0,17394.0,3.49732797]
[1673444589871,0.016,17395.0,17394.0,3.38722797]
[1673444590120,0.016,17395.0,17394.0,3.02751697]
[1673444590639,0.016,17395.0,17394.0,3.38722797]
[1673444592167,0.016,17395.0,17394.0,3.02751697]
[1673444592458,0.016,17395.0,17394.0,3.38722797]
[1673444593230,1.29678,17395.0,17394.0,2.87107716]
[1673444593494,1.29678,17395.0,17394.0,2.51136616]
[1673444594513,1.29678,17395.0,17394.0,2.62106616]
[1673444594768,1.29678,17395.0,17394.0,2.98077716]
[1673444595035,1.29678,17395.0,17394.0,3.49692797]
[1673444597068,1.29678,17395.0,17394.0,3.49192797]
[1673444597839,1.14646,17395.0,17394.0,3.49192797]
[1673444598619,0.00021,17396.0,17394.0,3.49192797]
[1673444598890,0.00021,17396.0,17395.0,0.659711]
[1673444599128,0.00021,17396.0,17395.0,1.449754]
[1673444599377,0.00021,17396.0,17395.0,1.749754]
[1673444599643,0.67102322,17396.0,17395.0,1.749754]
[1673444599926,0.00021,17396.0,17395.0,1.749754]
[1673444600165,0.01221,17396.0,17395.0,2.036754]
[1673444600415,0.01206,17396.0,17395.0,2.036754]
[1673444601252,6e-05,17396.0,17395.0,1.999754]
[1673444601529,0.01406,17396.0,17395.0,2.036754]
[1673444601778,0.01406,17396.0,17395.0,2.55290481]
[1673444602296,0.01406,17396.0,17395.0,2.036754]
[1673444603564,0.01406,17396.0,17395.0,2.396465]
[1673444604063,0.01406,17396.0,17395.0,2.91261581]
[1673444604314,0.01406,17396.0,17395.0,3.38673467]
[1673444604566,0.01406,17396.0,17395.0,3.49643467]
[1673444604817,0.01406,17396.0,17395.0,3.49653467]
[1673444607512,0.014,17396.0,17395.0,3.49653467]
[1673444609546,0.014,17396.0,17395.0,2.87058386]
[1673444610048,0.014,17396.0,17395.0,2.98068386]
[1673444610298,0.014,17396.0,17395.0,2.87058386]
[1673444610815,1.14667,17397.0,17395.0,2.87058386]
[1673444610816,1.114162,17397.0,17396.0,0.88353578]
[1673444611058,1.114162,17397.0,17396.0,3.20908909]
[1673444611554,1.114012,17397.0,17396.0,2.33322378]
[1673444611805,1.114012,17397.0,17396.0,2.58322378]
[1673444612563,1.126012,17397.0,17396.0,2.63122378]
[1673444612834,1.84725299,17397.0,17396.0,0.7281688]
[1673444613093,1.84396038,17397.0,17396.0,0.90026205]
[1673444613380,2.37847111,17397.0,17396.0,0.90026205]
[1673444613879,2.37847111,17397.0,17396.0,0.7281969]
[1673444614158,2.37847111,17397.0,17396.0,1.0723435]
[1673444614382,2.37847111,17397.0,17396.0,0.90026205]
[1673444614638,2.37847111,17397.0,17396.0,1.07235153]
[1673444615149,2.37847111,17397.0,17396.0,0.90026205]
[1673444615382,2.37847111,17397.0,17396.0,1.07234356]
[1673444615634,1.66052273,17397.0,17396.0,0.90026205]
[1673444616462,2.37847111,17397.0,17396.0,0.72819521]
[1673444616695,2.37847111,17397.0,17396.0,0.90026205]
[1673444617750,1.66052273,17397.0,17396.0,0.90026205]
[1673444618499,1.66052273,17397.0,17396.0,1.07236081]
[1673444618747,2.37847111,17397.0,17396.0,0.72821421]
[1673444619757,2.37841111,17397.0,17396.0,0.72821421]
[1673444622574,2.37841111,17397.0,17396.0,0.90026205]
[1673444623825,2.34156191,17397.0,17396.0,0.72828243]
[1673444624610,2.34156191,17397.0,17396.0,0.90026205]
[1673444625142,2.34156191,17397.0,17396.0,0.7283154]
[1673444626199,2.34156191,17397.0,17396.0,0.47019995]
[1673444626985,2.34156191,17397.0,17396.0,0.7283154]
[1673444629336,1.62361353,17397.0,17396.0,0.90026205]
[1673444631181,1.78891353,17397.0,17396.0,0.90026205]
[1673444632450,1.78891353,17397.0,17396.0,1.330549]
[1673444632705,1.78891353,17397.0,17396.0,1.0723154]
[1673444633727,1.0891028,17397.0,17396.0,1.63280387]
[1673444633991,1.0891028,17397.0,17396.0,2.65232307]
[1673444634244,1.0891028,17397.0,17396.0,3.01203407]
[1673444635295,1.0891028,17397.0,17396.0,3.52818838]
[1673444636860,1.0447328,17397.0,17396.0,3.52818838]
[1673444641221,0.012,17397.0,17396.0,3.52818838]
[1673444641459,1.0447328,17397.0,17396.0,3.52818838]
[1673444642003,1.0447328,17397.0,17396.0,3.01203407]
[1673444642484,1.0447328,17397.0,17396.0,3.52818838]
[1673444645890,1.0447328,17397.0,17396.0,3.01203407]
[1673444647486,1.0447328,17397.0,17396.0,3.52818838]
[1673444649333,0.012,17397.0,17396.0,3.735999]
[1673444649592,0.012,17397.0,17396.0,4.66306444]
[1673444649843,0.94128016,17400.0,17397.0,0.3]
[1673444650113,0.94128016,17400.0,17399.0,0.680025]
[1673444650360,0.94128016,17400.0,17399.0,2.129515]
[1673444650887,0.94128016,17400.0,17399.0,2.429515]
[1673444651152,0.94128016,17400.0,17399.0,2.16349]
[1673444651964,0.00104045,17401.0,17399.0,2.16349]
[1673444652222,0.94232061,17401.0,17400.0,1.33652926]
[1673444652474,0.94232061,17401.0,17400.0,2.48595326]
[1673444652732,0.00104045,17401.0,17400.0,2.48595326]
[1673444653030,4.045e-05,17401.0,17400.0,3.12957557]
[1673444653280,0.94221373,17402.0,17400.0,3.12957557]
[1673444653554,0.94221373,17402.0,17401.0,0.72952764]
[1673444653815,0.94221373,17402.0,17401.0,2.35069689]
[1673444654549,0.94221373,17402.0,17401.0,2.58069689]
[1673444655069,0.94321373,17402.0,17401.0,2.94856246]
[1673444655370,0.94321373,17402.0,17401.0,2.94856254]
[1673444655588,0.94321373,17402.0,17401.0,3.12046086]
[1673444656135,0.94321373,17402.0,17401.0,2.94856203]
[1673444656642,0.94321373,17402.0,17401.0,2.64856203]
[1673444657185,0.94321373,17402.0,17401.0,2.41084545]
[1673444658244,0.94321373,17402.0,17401.0,2.71084545]
[1673444658499,0.94321373,17402.0,17401.0,2.41084545]
[1673444663223,0.84889236,17402.0,17401.0,2.41084545]
[1673444663481,0.84889236,17402.0,17401.0,2.71084545]
[1673444664838,0.84889236,17402.0,17401.0,2.41084545]
[1673444666385,0.84889236,17402.0,17401.0,2.16948417]
[1673444666637,0.84889236,17402.0,17401.0,2.59063697]
[1673444666890,0.84789236,17402.0,17401.0,2.76228451]
[1673444668652,0.84789236,17402.0,17401.0,2.93425928]
[1673444676265,0.76310312,17402.0,17401.0,2.93425928]
[1673444678506,0.001,17402.0,17401.0,2.93425928]
[1673444678746,0.76310312,17402.0,17401.0,2.84004823]
[1673444682983,0.76310312,17402.0,17401.0,2.71027859]
[1673444686714,0.76310312,17402.0,17401.0,3.56594986]
[1673444688472,0.001,17402.0,17401.0,3.13220116]
[1673444689229,0.68785094,17403.0,17402.0,1.0049801]
[1673444689499,0.68785094,17403.0,17402.0,3.4832721]
[1673444689743,0.68785094,17403.0,17402.0,3.7832721]
[1673444690485,0.92552883,17403.0,17402.0,3.1732721]
[1673444690739,0.68785094,17403.0,17402.0,3.06058003]
[1673444690970,0.68785094,17403.0,17402.0,2.2442721]
[1673444692709,0.68785094,17403.0,17402.0,2.5442721]
[1673444694551,0.68785094,17403.0,17402.0,3.06058003]
[1673444700331,0.68785094,17403.0,17402.0,4.06058003]
[1673444702148,0.68785094,17403.0,17402.0,3.92058003]
[1673444702399,0.58699117,17403.0,17402.0,4.05958003]
[1673444703432,0.58699117,17403.0,17402.0,3.35459993]
[1673444703701,0.58699117,17403.0,17402.0,4.06475625]
[1673444707065,0.5846792,17403.0,17402.0,4.06475625]
[1673444709418,0.5846792,17403.0,17402.0,3.06475625]
[1673444709665,0.5846792,17403.0,17402.0,2.24844832]
[1673444710168,0.5846792,17403.0,17402.0,2.67898056]
[1673444711426,0.5846792,17403.0,17402.0,3.51284439]
[1673444711672,0.5846792,17403.0,17402.0,3.38231215]
[1673444712439,0.5846792,17403.0,17402.0,3.38216013]
[1673444714850,0.7488792,17403.0,17402.0,3.23798446]
[1673444715107,0.7488792,17403.0,17402.0,2.93798446]
[1673444715373,0.6402692,17403.0,17402.0,3.23798446]
[1673444715849,0.6402692,17403.0,17402.0,3.09898446]
[1673444716894,0.6402692,17403.0,17402.0,3.23998446]
[1673444718209,0.6402692,17403.0,17402.0,2.93998446]
[1673444718472,0.6402692,17403.0,17402.0,3.28434056]
[1673444719582,0.6402692,17403.0,17402.0,2.70984658]
[1673444719833,0.6402692,17403.0,17402.0,3.00984658]
[1673444721308,0.6402692,17403.0,17402.0,3.24013648]
[1673444721913,0.6402692,17403.0,17402.0,2.70978351]
[1673444722435,0.6402692,17403.0,17402.0,1.99962719]
[1673444722735,1.3362278,17403.0,17402.0,1.82736201]
[1673444724085,0.6402692,17403.0,17402.0,1.82736201]
[1673444724595,1.3362278,17403.0,17402.0,1.82736201]
[1673444725137,1.89895051,17403.0,17402.0,1.65519155]
[1673444726383,1.89895051,17403.0,17402.0,0.82132772]
[1673444726890,1.89895051,17403.0,17402.0,0.56312257]
[1673444728440,1.86458051,17403.0,17402.0,0.56312257]
[1673444729810,1.86458051,17403.0,17402.0,0.391]
[1673444730093,2.16458051,17403.0,17402.0,0.391]
[1673444730361,2.68829151,17403.0,17402.0,0.391]
[1673444730885,3.26290451,17403.0,17402.0,0.391]
[1673444731697,3.26290451,17403.0,17402.0,0.25]
[1673444731952,3.26290451,17403.0,17402.0,0.27]
[1673444733235,2.90319351,17403.0,17402.0,0.27]
[1673444733486,3.26290451,17403.0,17402.0,0.27]
[1673444734001,2.90319351,17403.0,17402.0,0.27]
[1673444735313,3.26290451,17403.0,17402.0,0.27]
[1673444740605,3.83751751,17403.0,17402.0,0.27]
[1673444740863,3.4382948,17403.0,17402.0,0.27]
[1673444741431,4.08540315,17403.0,17402.0,0.27]
[1673444741686,3.4239248,17403.0,17402.0,0.27]
[1673444742500,5.00827247,17403.0,17402.0,0.27]
[1673444742757,5.06564815,17403.0,17402.0,0.25]
[1673444743008,5.06764815,17403.0,17402.0,0.256]
[1673444743261,5.23964059,17403.0,17402.0,0.256]
[1673444743767,5.23764059,17403.0,17402.0,0.25]
[1673444744028,5.23964059,17403.0,17402.0,0.26]
[1673444744285,5.65999091,17403.0,17402.0,0.25]
[1673444744591,4.68846091,17403.0,17402.0,0.26]
[1673444745309,4.26611059,17403.0,17402.0,0.26]
[1673444746108,4.09411815,17403.0,17402.0,0.26]
[1673444746623,4.26611059,17403.0,17402.0,0.26]
[1673444746873,4.09411815,17403.0,17402.0,0.26]
[1673444747148,4.84702465,17403.0,17402.0,0.26]
[1673444748376,4.67503221,17403.0,17402.0,0.26]
[1673444748891,4.09411815,17403.0,17402.0,0.26]
[1673444749133,4.87175547,17403.0,17402.0,0.26]
[1673444750134,0.3,17402.0,17394.0,1.0]
[1673444750410,0.1642,17399.0,17396.0,1.149659]
[1673444750678,0.23767789,17398.0,17396.0,0.574844]
[1673444750934,0.3,17397.0,17396.0,0.25]
[1673444751188,0.3,17397.0,17395.0,0.574849]
[1673444751447,1.27912921,17397.0,17396.0,0.3]
[1673444751704,0.3,17397.0,17396.0,0.02110711]
[1673444752458,1.04145132,17397.0,17396.0,0.02110711]
[1673444752994,1.04245132,17397.0,17396.0,0.16210711]
[1673444753541,0.3,17396.0,17393.0,0.3]
[1673444753785,0.60836611,17395.0,17394.0,1.149783]
[1673444754565,0.57959611,17395.0,17394.0,1.149783]
[1673444755097,0.59359611,17395.0,17394.0,1.192783]
[1673444755357,0.59359611,17395.0,17394.0,1.492783]
[1673444756166,0.59359611,17395.0,17394.0,2.00846774]
[1673444756932,0.59359611,17395.0,17394.0,1.492783]
[1673444757497,0.59359611,17395.0,17394.0,2.00846774]
[1673444760934,0.59359611,17395.0,17394.0,1.492783]
[1673444762185,0.59259611,17395.0,17394.0,1.492783]
[1673444767125,0.59259611,17395.0,17394.0,1.4900884]
[1673444767878,0.44907611,17395.0,17394.0,2.00577314]
[1673444768693,0.44907611,17395.0,17394.0,1.4900884]
[1673444768969,0.44907611,17395.0,17394.0,2.25577314]
[1673444769746,0.44907611,17395.0,17394.0,1.75577314]
[1673444770575,0.44907611,17395.0,17394.0,1.2400884]
[1673444777501,1.49077531,17395.0,17394.0,0.7232624]
[1673444777793,2.23381051,17395.0,17394.0,1.06748243]
[1673444778100,2.23381051,17395.0,17394.0,0.8953914]
[1673444778297,2.23381051,17395.0,17394.0,1.06748243]
[1673444779058,2.23381051,17395.0,17394.0,0.89539614]
[1673444779322,2.23381051,17395.0,17394.0,1.32565888]
[1673444779590,2.36681229,17395.0,17393.0,0.4302624]
[1673444779839,2.36681229,17395.0,17391.0,0.4302624]
[1673444779840,2.48205654,17394.0,17391.0,0.4302624]
[1673444780103,0.77380266,17393.0,17391.0,0.4302624]
[1673444780358,1.4014102,17392.0,17390.0,0.4302624]
[1673444780642,0.73717566,17391.0,17390.0,0.4302624]
[1673444781129,2.01655275,17392.0,17390.0,0.4302624]
[1673444781387,1.03717566,17391.0,17390.0,0.4312624]
[1673444782464,0.73717566,17391.0,17389.0,1.52205394]
[1673444782732,0.73225093,17391.0,17390.0,0.301]
[1673444782989,0.73225093,17391.0,17390.0,0.7312624]
[1673444783755,1.45342659,17391.0,17390.0,0.3]
[1673444784012,1.46342659,17391.0,17390.0,0.3]
[1673444784268,1.45342659,17391.0,17389.0,1.0053374]
[1673444784583,1.46942659,17391.0,17390.0,0.301]
[1673444785059,0.73225093,17391.0,17390.0,0.7312624]
[1673444785572,0.71625093,17391.0,17390.0,0.3]
[1673444785827,0.60024093,17391.0,17390.0,0.3]
[1673444786091,0.59024093,17391.0,17390.0,0.3]
[1673444786352,0.60624093,17391.0,17390.0,0.301]
[1673444787643,0.60624093,17391.0,17390.0,1.219678]
[1673444788420,0.60624093,17391.0,17390.0,1.04783871]
[1673444788631,0.60624093,17391.0,17390.0,1.30553354]
[1673444789632,0.60624093,17391.0,17390.0,1.47737283]
[1673444790681,0.016,17391.0,17390.0,1.6499404]
[1673444791420,0.016,17391.0,17390.0,2.48265768]
[1673444791688,0.016,17391.0,17390.0,2.2249834]
[1673444791935,0.70366378,17391.0,17390.0,1.8283284]
[1673444792189,0.70366378,17391.0,17390.0,2.82173836]
[1673444792190,0.016,17391.0,17390.0,2.82173836]
[1673444792451,0.016,17391.0,17390.0,2.81985196]
[1673444792683,0.016,17391.0,17390.0,2.46014096]
[1673444793182,0.016,17391.0,17390.0,2.9758257]
[1673444793431,0.016,17391.0,17390.0,3.2758257]
[1673444793681,0.016,17391.0,17390.0,3.33582878]
[1673444793931,0.016,17391.0,17390.0,3.69553978]
[1673444794461,0.016,17391.0,17390.0,3.16722982]
[1673444794729,1.77407473,17394.0,17390.0,3.16688604]
[1673444794992,0.00015,17393.0,17392.0,0.42945339]
[1673444795211,0.00015,17393.0,17392.0,2.53909739]
[1673444795467,0.00015,17393.0,17392.0,2.17938639]
[1673444795721,0.00015,17393.0,17392.0,2.75435658]
[1673444795985,0.00015,17393.0,17392.0,3.11406758]
[1673444796248,0.00015,17393.0,17392.0,3.36406639]
[1673444796492,0.01615,17393.0,17392.0,2.942621]
[1673444796750,0.016,17393.0,17392.0,2.942621]
[1673444798265,0.016,17393.0,17392.0,2.58291]
[1673444798510,0.016,17393.0,17392.0,2.942621]
[1673444799004,0.016,17393.0,17392.0,3.48980325]
[1673444800276,0.91095783,17394.0,17393.0,0.62455497]
[1673444800524,0.91095783,17394.0,17393.0,2.50408832]
[1673444801565,0.91095783,17394.0,17393.0,2.75408832]
[1673444802067,0.92095783,17394.0,17393.0,2.77608832]
[1673444803095,0.92095783,17394.0,17393.0,2.34644097]
[1673444804880,0.92095783,17394.0,17393.0,2.70615197]
[1673444805126,0.92095783,17394.0,17393.0,3.52149604]
[1673444805911,0.92095783,17394.0,17393.0,2.70615197]
[1673444806237,0.92095783,17394.0,17393.0,2.34644097]
[1673444806962,0.92095783,17394.0,17393.0,2.77616185]
[1673444807774,0.92095783,17394.0,17393.0,2.34644097]
[1673444809817,0.92095783,17394.0,17393.0,3.22149604]
[1673444810331,0.92095783,17394.0,17393.0,2.70615197]
[1673444810569,0.92095783,17394.0,17393.0,3.22149604]
[1673444810838,0.92095783,17394.0,17393.0,2.70615197]
[1673444811089,0.92095783,17394.0,17393.0,3.22149604]
[1673444812127,0.92095783,17394.0,17393.0,2.86178504]
[1673444813874,0.92095783,17394.0,17393.0,3.16178504]
[1673444814127,0.92095783,17394.0,17393.0,3.52149604]
[1673444814661,0.79926505,17394.0,17393.0,3.52149604]
[1673444815185,1.34262871,17394.0,17393.0,1.75327191]
[1673444815460,0.79926505,17394.0,17393.0,1.449886]
[1673444815687,1.49688182,17394.0,17393.0,1.449886]
[1673444816978,1.36594294,17394.0,17393.0,1.57959022]
[1673444817236,1.12826505,17394.0,17393.0,1.34841996]
[1673444817487,1.86236001,17394.0,17393.0,0.83278521]
[1673444818288,2.41692419,17394.0,17393.0,0.83378521]
[1673444818540,1.62865914,17394.0,17393.0,0.83378521]
[1673444818798,1.87436001,17394.0,17393.0,1.13378521]
[1673444819089,2.53198728,17394.0,17393.0,1.13378521]
[1673444820159,2.56099459,17394.0,17393.0,1.13378521]
[1673444820418,1.87446001,17394.0,17393.0,1.13378521]
[1673444820685,2.4441949,17394.0,17393.0,1.13378521]
[1673444822019,2.4441949,17394.0,17393.0,1.47755795]
[1673444822288,2.4441949,17394.0,17393.0,1.13378521]
[1673444822542,2.4441949,17394.0,17393.0,1.47755795]
[1673444824666,2.4441949,17394.0,17393.0,1.64941996]
[1673444825168,2.4441949,17394.0,17393.0,1.4777414]
[1673444825703,2.4441949,17394.0,17393.0,0.25902566]
[1673444825704,1.87446001,17394.0,17393.0,0.25902566]
[1673444825945,1.87446001,17394.0,17393.0,0.001]
[1673444826200,2.23428201,17394.0,17393.0,0.001]
[1673444827732,2.22000201,17394.0,17393.0,0.001]
[1673444830823,1.86018001,17394.0,17393.0,0.001]
[1673444832099,2.22000201,17394.0,17393.0,0.001]
[1673444834367,1.86018001,17394.0,17393.0,0.001]
[1673444834669,2.5296625,17394.0,17393.0,0.001]
[1673444836652,1.86018001,17394.0,17393.0,0.001]
[1673444836903,2.22000201,17394.0,17393.0,0.001]
[1673444837391,2.58268867,17394.0,17393.0,0.001]
[1673444840710,2.56840867,17394.0,17393.0,0.001]
[1673444844008,2.92823067,17394.0,17393.0,0.001]
[1673444844500,2.56840867,17394.0,17393.0,0.001]
[1673444844748,2.56840867,17394.0,17392.0,0.25802566]
[1673444845000,0.1653,17393.0,17392.0,0.25802566]
[1673444845258,1.19939496,17393.0,17392.0,0.55802566]
[1673444846018,1.19939496,17393.0,17392.0,0.56202566]
[1673444846271,1.19939496,17393.0,17392.0,0.26202566]
[1673444846759,1.19939496,17393.0,17392.0,0.25802566]
[1673444847022,1.84266182,17393.0,17392.0,0.26202566]
[1673444847527,1.84266182,17393.0,17392.0,0.43402331]
[1673444848304,1.84266182,17393.0,17392.0,0.73402331]
[1673444849562,1.83921282,17393.0,17392.0,0.73402331]
[1673444850081,1.83921282,17393.0,17392.0,1.07779605]
[1673444850339,1.53921282,17393.0,17392.0,0.9057984]
[1673444850879,0.80511786,17393.0,17392.0,0.9057984]
[1673444851141,0.80511786,17393.0,17392.0,1.4807754]
[1673444852145,1.53921282,17393.0,17392.0,1.4807754]
[1673444852425,0.80511786,17393.0,17392.0,1.22274974]
[1673444852669,0.80511786,17393.0,17392.0,1.65245396]
[1673444853736,0.69603736,17393.0,17392.0,1.65245396]
[1673444854532,0.0617705,17393.0,17392.0,1.30868122]
[1673444856314,0.0617705,17393.0,17392.0,0.878977]
[1673444858318,0.0617705,17393.0,17392.0,1.453954]
[1673444859118,1.38594947,17393.0,17392.0,1.453954]
[1673444859358,1.38594947,17393.0,17392.0,1.30967153]
[1673444860876,1.38594947,17393.0,17392.0,1.00967153]
[1673444861142,1.38594947,17393.0,17392.0,1.30967153]
[1673444861905,1.38594947,17393.0,17392.0,1.32614027]
[1673444862159,0.65442775,17393.0,17392.0,0.89544574]
[1673444863143,0.60165725,17393.0,17392.0,0.89544574]
[1673444864469,0.009,17393.0,17392.0,1.41122206]
[1673444864973,0.009,17393.0,17392.0,1.47042274]
[1673444865266,0.62043132,17393.0,17392.0,1.47042274]
[1673444865713,0.62043132,17393.0,17392.0,1.98619906]
[1673444866494,0.50881132,17393.0,17392.0,1.47042274]
[1673444867005,1.2377082,17393.0,17392.0,0.89544574]
[1673444869763,1.2377082,17393.0,17392.0,0.59544574]
[1673444870017,1.2377082,17393.0,17392.0,0.89544574]
[1673444870512,1.2377082,17393.0,17392.0,1.02640788]
[1673444871531,1.2377082,17393.0,17392.0,0.45143088]
[1673444874473,1.2377082,17393.0,17392.0,0.79617726]
[1673444875248,1.2377082,17393.0,17392.0,0.62378262]
[1673444875993,1.2377082,17393.0,17392.0,0.79617726]
[1673444876794,1.2377082,17393.0,17392.0,0.62374366]
[1673444877065,1.2377082,17393.0,17392.0,0.62374483]
[1673444877855,1.2377082,17393.0,17392.0,0.79617726]
[1673444879454,1.2377082,17393.0,17392.0,0.62372383]
[1673444879728,1.1945702,17393.0,17392.0,0.61972383]
[1673444880812,1.1945702,17393.0,17392.0,1.05068028]
[1673444881004,1.1945702,17393.0,17392.0,0.62371814]
[1673444881232,1.2715702,17393.0,17392.0,0.79617726]
[1673444882987,1.2715702,17393.0,17392.0,0.77970852]
[1673444883257,1.02500505,17393.0,17392.0,0.77970852]
[1673444883520,0.077,17393.0,17392.0,1.3255846]
[1673444883779,0.077,17393.0,17392.0,2.56035278]
[1673444884312,0.077,17393.0,17392.0,2.40439846]
[1673444884586,0.077,17393.0,17392.0,2.92128489]
[1673444885621,2.21837061,17395.0,17392.0,2.91728489]
[1673444885904,0.015,17393.0,17392.0,2.59846289]
[1673444886142,0.015,17393.0,17392.0,2.89846289]
[1673444886403,0.015,17393.0,17392.0,3.25828489]
[1673444886659,0.015,17393.0,17392.0,2.74139846]
[1673444886913,0.015,17393.0,17392.0,2.95816724]
[1673444887429,0.015,17393.0,17392.0,2.40039846]
[1673444887684,1.47151382,17395.0,17392.0,2.40039846]
[1673444887939,0.79770505,17395.0,17394.0,0.43054813]
[1673444888197,1.3964057,17395.0,17394.0,1.92481505]
[1673444888457,1.3964057,17395.0,17394.0,2.22481505]
[1673444888707,1.4114057,17395.0,17394.0,2.22481505]
[1673444889242,1.4054057,17395.0,17394.0,2.48614368]
[1673444889511,2.25957822,17395.0,17394.0,1.18068555]
[1673444891419,2.25957822,17395.0,17394.0,0.43354201]
[1673444891657,2.25957822,17395.0,17394.0,0.60577555]
[1673444892724,2.24533822,17395.0,17394.0,0.60577555]
[1673444893070,1.63163757,17395.0,17394.0,0.60577555]
[1673444893579,1.63133046,17395.0,17394.0,0.77798097]
[1673444893859,0.94276505,17395.0,17394.0,0.60577555]
[1673444894114,0.94276505,17395.0,17394.0,1.18068555]
[1673444894356,0.94276505,17395.0,17394.0,1.48068555]
[1673444894609,0.94276505,17395.0,17394.0,1.18068555]
[1673444895132,0.94276505,17395.0,17394.0,1.35288425]
[1673444895389,1.63132834,17395.0,17394.0,1.18068555]
[1673444895650,1.99115034,17395.0,17394.0,1.18068555]
[1673444895901,2.68082631,17395.0,17394.0,1.00843756]
[1673444896163,2.32100431,17395.0,17394.0,0.43352756]
[1673444896462,2.68082631,17395.0,17394.0,0.43352756]
[1673444896942,2.32100431,17395.0,17394.0,0.17519893]
[1673444897213,2.68082631,17395.0,17394.0,0.43352756]
[1673444897730,2.32100431,17395.0,17394.0,0.43352756]
[1673444897983,2.68082631,17395.0,17394.0,0.43352756]
[1673444898227,2.32099314,17395.0,17394.0,0.43352741]
[1673444898721,2.68081514,17395.0,17394.0,0.43352741]
[1673444898977,2.32099314,17395.0,17394.0,0.43352741]
[1673444899222,2.68081514,17395.0,17394.0,0.43352741]
[1673444899435,2.68081514,17395.0,17394.0,0.17519878]
[1673444900705,2.32099314,17395.0,17394.0,0.43352741]
[1673444900968,2.68081514,17395.0,17394.0,0.17519878]
[1673444901465,2.68081514,17395.0,17394.0,0.43352741]
[1673444901727,1.99113917,17395.0,17394.0,0.003]
[1673444901984,3.01387382,17395.0,17394.0,0.003]
[1673444902513,2.29113917,17395.0,17394.0,0.003]
[1673444902781,2.99468802,17395.0,17394.0,0.003]
[1673444906950,2.98031802,17395.0,17394.0,0.003]
[1673444909290,2.27676917,17395.0,17394.0,0.003]
[1673444909823,2.79857692,17395.0,17394.0,0.003]
[1673444910076,2.27676917,17395.0,17394.0,0.003]
[1673444910848,2.81155325,17395.0,17394.0,0.003]
[1673444912133,2.81155325,17395.0,17393.0,0.43052741]
[1673444912134,2.80255325,17395.0,17393.0,0.43052741]
[1673444912388,2.35943125,17395.0,17394.0,0.005]
[1673444912643,2.52323125,17395.0,17394.0,0.17719878]
[1673444912900,2.88305325,17395.0,17394.0,0.17719878]